Cogmind - Beta 12 @@@ ROGUE MODE // 2023.03.04 @ 13:43:47 Player: Delta Epsilon Result: Destroyed by D-53 Grenadier with Mini Grenade Launcher Performance ------------- Evolutions (0) 0 Regions Visited (2) 400 Robots Destroyed (27) 135 Value Destroyed (414) 414 Prototype IDs (0) 0 Alien Tech Used (0) 0 Bonus (0) 0 TOTAL SCORE: 949 Bonus ------- None Cogmind --------- Core Integrity 0/250 Matter 271/300 Energy 125/125 System Corruption 1% Temperature Cool (0) Movement Treading (480) Ox4 Location -10/Mines Parts ------- > --- POWER (1) -------- Light Ion Engine > --- PROPULSION (2) --- Light Treads > --- UTILITY (2) ------ Huge Storage Unit Medium Armor Plating > --- WEAPON (2) ------- Particle Gun Particle Gun > --- INVENTORY (25) --- Light Ion Engine Heat Sink Small Storage Unit High-capacity Matter Pod (84) Structural Scanner Seismic Detector Medium Armor Plating Medium Armor Plating Medium Armor Plating Hammer Peak State ------------ > --- POWER ------------ Light Ion Engine > --- PROPULSION ------- Light Treads Light Treads > --- UTILITY ---------- Small Storage Unit Seismic Detector > --- WEAPON ----------- Particle Gun Particle Gun > --- INVENTORY -------- Medium Armor Plating Medium Armor Plating Medium Armor Plating Medium Armor Plating Assault Rifle Assault Rifle Hammer [Rating: 10] Favorites ----------- Power Light Ion Engine Engine Light Ion Engine Propulsion Light Treads Treads Light Treads Utility Huge Storage Unit Device Seismic Detector Storage Huge Storage Unit Protection Medium Armor Plating Weapon Assault Rifle Energy Gun Particle Gun Ballistic Gun Assault Rifle Impact Weapon Hammer Build | -11 -10 -10 ------- Run | Jun Mat Min Slots Evolved . | . . . Power . | . . . Propulsion . | . . . Utility . | . . . Weapon . | . . . Parts Attached 22 | 7 11 4 Power 4 | 1 3 . Engine 4 | 1 3 . Core . | . . . Reactor . | . . . Propulsion 4 | 2 2 . Treads 4 | 2 2 . Leg . | . . . Wheel . | . . . Hover . | . . . Flight . | . . . Utility 5 | 2 1 2 Device 2 | 1 . 1 Storage 2 | 1 1 . Processor . | . . . Hackware . | . . . Protection 1 | . . 1 Artifact . | . . . Weapon 9 | 2 5 2 Energy Gun 4 | . 2 2 Energy Cannon . | . . . Ballistic Gun 4 | 2 2 . Ballistic Cannon . | . . . Launcher . | . . . Special Weapon . | . . . Impact Weapon 1 | . 1 . Slashing Weapon . | . . . Piercing Weapon . | . . . Special Melee Weapon . | . . . Unidentified Prototypes . | . . . Parts Lost 5 | . 4 1 Power 1 | . 1 . Propulsion 2 | . 1 1 Utility . | . . . Weapon 2 | . 2 . Highest Loss Streak 4 | . 4 1 To Critical Strikes . | . . . Average Slot Usage (%) 92 | . 93 85 Engine 13 | . 13 14 Treads 25 | . 27 14 Device 12 | . 14 7 Storage 14 | . 14 14 Protection 1 | . . 6 Energy Gun 4 | . . 28 Ballistic Gun 14 | . 17 . Impact Weapon 4 | . 5 . Naked Turns . | . . . Heaviest Build 96 | 13 88 96 Greatest Support 40 | 40 40 20 Greatest Overweight (x) 4 | . 4 4 Average Overweight (x) 1 | . 1 4 Largest Inventory Capacity 25 | 8 25 25 Average Capacity 22 | 7 22 25 Most Carried 11 | . 11 10 Average Carried 7 | . 6 10 Final Capacity 25 | 8 25 25 Final Carried 11 | . 11 10 Class Distribution -------------------- 100% | Mutant Dominant Class ---------------- Mutant | -10/Materials Mutant | -10/Mines Resources | -11 -10 -10 ----------- Run | Jun Mat Min Matter Collected 897 | 247 618 32 Remotely . | . . . Salvage Created 720 | 55 633 32 Parts 51 | 10 35 6 Haulers Intercepted 2 | . 2 . Recyclers Shooed . | . . . Parts Field Recycled . | . . . Retrieved Matter . | . . . Parts Self-Destructed . | . . . Prevented . | . . . Kills | -11 -10 -10 ------- Run | Jun Mat Min Combat Hostiles Destroyed 15 | . 12 3 Melee 3 | . 3 . Guns 11 | . 8 3 Classes Destroyed 7 | 1 6 . Builder 1 | . 1 . Tunneler 4 | 3 1 . Hauler 2 | . 2 . Recycler 2 | . 2 . Watcher 3 | . 3 . Swarmer 9 | . 6 3 Grunt 6 | . 6 . Best Kill Streak 3 | 2 3 3 Combat Bots Only 3 | . 3 3 Max Kills in Single Turn 1 | 1 1 1 Gunslinging . | . . . Exploded . | . . . Melee 1 | . 1 . Uniques/NPCs Destroyed . | . . . Combat | -11 -10 -10 -------- Run | Jun Mat Min Damage Taken 1116 | . 800 316 Core 256 | . 173 83 Absorbed by Shields . | . . . Core Remaining (%) 100 | 100 . . Volleys Fired 71 | 8 56 7 Largest 2 | 2 2 2 Hottest 130 | 40 130 130 Shots Fired 141 | 16 111 14 Gun 141 | 16 111 14 Cannon . | . . . Launcher . | . . . Special . | . . . Kinetic 125 | 16 109 . Thermal 16 | . 2 14 Explosive . | . . . Electromagnetic . | . . . Robot Hit Streak 8 | 2 8 3 Robot Miss Streak 4 | 3 4 3 Penetration Max . | . . . Secondary Targets 3 | . 2 1 Max Gunslinging Chain 1 | . 1 1 Shots Hit Robots 92 | 7 78 7 Core Hits 30 | 3 24 3 Critical Kills 2 | 1 1 . Critical Parts Destroyed 2 | . 2 . Critical Strikes 4 | 1 3 . Destroy 1 | 1 . . Smash 3 | . 3 . Melee Attacks 19 | . 19 . Impact 19 | . 19 . Slashing . | . . . Piercing . | . . . Sneak Attacks 1 | . 1 . Combat Hostiles . | . . . Follow-up Attacks . | . . . Damage Inflicted 1374 | 92 1176 106 Guns 996 | 92 798 106 Cannons . | . . . Explosions . | . . . Melee 358 | . 358 . Ramming 20 | . 20 . Kinetic 890 | 92 798 . Thermal 106 | . . 106 Explosive . | . . . Electromagnetic . | . . . Impact 358 | . 358 . Slashing . | . . . Piercing . | . . . Highest Corruption 1 | . 1 1 Average Corruption 1 | . 1 1 Corruption Purged . | . . . Corruption Blocked . | . . . Effects 23 | . 20 3 Message Errors 8 | . 7 1 Matter Fused 9 | . 8 1 Heat Flow Errors 4 | . 3 1 Data Loss (minor) 2 | . 2 . Overload Shots . | . . . Overflow Damage 71 | . 71 . Projectiles . | . . . Explosions . | . . . Melee 71 | . 71 . Knockbacks 1 | . 1 . Impact 1 | . 1 . Kinetic . | . . . Secondary . | . . . Self-Inflicted Damage . | . . . Shots . | . . . Rammed 1 | . 1 . Targets Rammed 2 | . 2 . Kicked . | . . . Crushed 1 | . 1 . Highest Temperature 273 | . 192 273 Average Temperature 94 | . 61 121 Received Heat Transfer 243 | . 243 . Siege Activations . | . . . Robots Corrupted . | . . . Combat Hostiles . | . . . Parts Fried 2 | . 2 . Impact Corruptions 3 | . 3 . Robots Melted . | . . . Combat Hostiles . | . . . Parts Melted . | . . . Heat Transferred 259 | . . 259 Parts Sabotaged . | . . . Parts Stolen . | . . . Parts Stripped . | . . . Power Chain Reactions . | . . . Missiles Intercepted . | . . . Alert | -11 -10 -10 ------- Run | Jun Mat Min Peak Influence 142 | 15 142 75 Initial 9 | . 9 . Average 34 | 6 32 51 Maximum Alert Level . | . . . Low Security (%) 100 | 100 100 100 Level 1 . | . . . Level 2 . | . . . Level 3 . | . . . Level 4 . | . . . Level 5 . | . . . High Security . | . . . Max Security . | . . . Squads Dispatched 3 | . 3 . Investigation 2 | . 2 . Extermination . | . . . Reinforcement 1 | . 1 . Assault . | . . . Garrison . | . . . Intercept . | . . . Searches Triggered . | . . . Construction Impeded . | . . . Haulers Reinforced . | . . . Active Scanning Responses . | . . . Cargo Convoy Interrupts . | . . . Stealth | -11 -10 -10 --------- Run | Jun Mat Min Distress Signals . | . . . Communications Jammed . | . . . Distress Signals . | . . . Times Spotted 27 | . 22 5 Peak Tracking Total 4 | . 4 3 Tactical Retreats 1 | . 1 . Traps | -11 -10 -10 ------- Run | Jun Mat Min Traps Triggered 3 | . 3 . Indirectly . | . . . Trap Hack Attempts . | . . . Triggered . | . . . Disarmed . | . . . Reprogrammed . | . . . Reused . | . . . Traps Extracted . | . . . Installed . | . . . Triggered . | . . . Machines | -11 -10 -10 ---------- Run | Jun Mat Min Machines Disabled 1 | . 1 . Max in Single Turn 1 | . 1 . Machines Repaired . | . . . Machines Sabotaged . | . . . Overloaded Fab Kills . | . . . Hacking | -11 -10 -10 --------- Run | Jun Mat Min Machines Accessed 8 | . 8 . Terminals 7 | . 7 . Fabricators . | . . . Repair Stations . | . . . Recycling Units 1 | . 1 . Scanalyzers . | . . . Garrison Access . | . . . Total Hacks 18 | . 18 . Successful 6 | . 6 . Failed 12 | . 12 . Catastrophic 2 | . 2 . Database Lockouts . | . . . Manual 15 | . 15 . Terminals 15 | . 15 . Fabricators . | . . . Repair Stations . | . . . Recycling Units 3 | . 3 . Scanalyzers . | . . . Garrison Access . | . . . Terminal Hacks 3 | . 3 . Robot Analysis 3 | . 3 . Fabricator Hacks . | . . . Repair Station Hacks . | . . . Recycling Unit Hacks 1 | . 1 . Retrieve Components 1 | . 1 . Scanalyzer . | . . . Garrison Access Hacks . | . . . Unauthorized Hacks 2 | . 2 . Terminals 2 | . 2 . Track 1 | . 1 . Operators 1 | . 1 . Fabricators . | . . . Repair Stations . | . . . Recycling Units . | . . . Scanalyzers . | . . . Garrison Access . | . . . Data Cores Recovered . | . . . Used . | . . . Hacking Detections 8 | . 8 . Full Trace Events 2 | . 2 . Feedback Events . | . . . Feedback Blocked . | . . . Robot Schematics Acquired . | . . . Robots Built . | . . . Authchips . | . . . Time . | . . . Total Robot Build Rating . | . . . Part Schematics Acquired . | . . . Parts Built . | . . . Authchips . | . . . Time . | . . . Total Part Build Rating . | . . . Parts Repaired . | . . . Time . | . . . Parts Recycled . | . . . Recycled Matter . | . . . Retrieved Matter . | . . . Retrieved Components 10 | . 10 . Parts Scanalyzed . | . . . Part Schematics Acquired . | . . . Parts Damaged . | . . . Bothacking | -11 -10 -10 ------------ Run | Jun Mat Min Used RIF Installer . | . . . Robots Hacked . | . . . Non-combat . | . . . Combat . | . . . Robot Hacks Applied . | . . . Relay Couplers Released . | . . . Fabnet Peak Effective % . | . . . Robots Rewired . | . . . Allies Hacked . | . . . Hacks Repelled . | . . . Allies | -11 -10 -10 -------- Run | Jun Mat Min Total Allies . | . . . Largest Group . | . . . Highest-Rated Group . | . . . Highest-Rated Ally . | . . . Total Orders . | . . . Ally Attacks . | . . . Total Damage . | . . . Kills . | . . . Allies Corrupted . | . . . Allies Melted . | . . . Intel | -11 -10 -10 ------- Run | Jun Mat Min Robot Analysis Total 3 | . 3 . Derelict Logs Recovered 1 | . . 1 Drone Launches . | . . . Drone Recoveries . | . . . Exploration | -11 -10 -10 ------------- Run | Jun Mat Min Turns Passed 3814 | 176 3074 564 Spaces Moved 1184 | 100 974 110 Core 17 | 17 . . Treads 1167 | 83 974 110 Legs . | . . . Wheels . | . . . Hover . | . . . Flight . | . . . Fastest Speed 50 | 50 160 480 Average Speed 290 | 141 284 480 Slowest Speed 480 | 160 480 480 Overloaded Moves . | . . . Propulsion Burnouts . | . . . Robots Hopped . | . . . Cave-ins Triggered . | . . . Exploration Rate (%) 42 | 7 98 22 Regions Visited 2 Branch Regions 1 Pre-discovered Areas . | . . . Known Exits Taken . | . . . Unknown Exits Taken 2 | 1 1 . Scrap Searched . | . . . Spaces Dug 3 | . 3 . Terrain Destroyed 3 | . 3 . Melee 3 | . 3 . Projectile . | . . . AOE . | . . . Terrain Rammed . | . . . Walls Destroyed . | . . . Machines Disabled . | . . . Actions | -11 -10 -10 --------- Run | Jun Mat Min Total 1372 | 115 1125 132 Wait 61 | 1 49 11 Move 1182 | 99 973 110 Hop . | . . . Pick Up 12 | . 12 . Fast Attach 7 | 7 . . Attach 6 | . 5 1 Detach 1 | . 1 . Swap 9 | . 6 3 Drop 2 | . 2 . Fire 71 | 8 56 7 Melee 19 | . 19 . Ram . | . . . Kick . | . . . Crush 2 | . 2 . Escape Stasis . | . . . Rewire . | . . . Trap . | . . . Miscellaneous . | . . . Route ------- -11/Junkyard -10/Materials (discovered 5 exits: [*Mat x3] / [*Min x2]) -10/Mines History --------- Turn | Location | Event 46 | -11/Junkyard | Discovered new exit (range 15) 177 | -11/Junkyard | Entered Materials 311 | -10/Materials | Build established: Mutant 519 | -10/Materials | Discovered new exit (range 7) 986 | -10/Materials | Discovered new exit (range 10) 1304 | -10/Materials | Discovered new exit (range 11) 2071 | -10/Materials | Core integrity fell below 50% 2113 | -10/Materials | Lost 4 parts (1p1n2w) 2376 | -10/Materials | Discovered new exit (range 3) 2379 | -10/Materials | Discovered new exit (range 6) 3251 | -10/Materials | Entered Mines 3274 | -10/Mines | Core integrity fell below 20% 3512 | -10/Mines | Learned Materials stockpile data 3798 | -10/Mines | Assembled infested the area 3803 | -10/Mines | Assisted by a Guerilla fighting off Assembled 3815 | -10/Mines | Destroyed by D-53 Grenadier with Mini Grenade Launcher Last Messages --------------- 03255_ S-10 Pest destroyed. 03259_ Lgt. Treads destroyed. 03267_ S-10 Pest destroyed. 03267_ Switching to secondary target: S-10 Pest. 03273_ S-10 Pest destroyed. 03286_ Acquired 9 matter. 03291_ Acquired 14 matter. 03296_ Acquired 9 matter. 03482_ System corrupted: Matter fused (-8). 03512_ Acquired derelict log, extracted data. Data stored: Materials stockpile data. 03710_ A6ZN&ITF1N/TRW6LS=2BG&Z5KNAVU9NBT3EFLU 03764_ System corrupted: Heat flow error (+155). 03798_ ALERT: Infestation in the mines, dispatching Demolisher response squad. 03803_ A derelict emerges from the shadows: "You need to get out of here! I've been tracking a group of Assembled to figure out where they're coming from, and they're closing on this area, come on!" 03813_ C-30 ARC bursts open, deploying its payload. 03813_ D-53 Grenadier unfolds itself. Map ----- +----------------------------------------------------+ | | | | | ?????????????????????????????????????????????????? | | ?????????##??????????????????????????????????????? | | ?????#### ##??????????????????????#####??????????? | | ????## #?????????????????????##= [##?????????? | | ???## #????????????????????##* = #####?????? | | ??## ##???????##############* = #?????? | | ??# ##????????# ### #?????? | | ??# ##?????????# ############ ###?# #?????? | | ??## #??????????# #??????????# ##???# #?????? | | ???## ##????????## ### #??# #????# ###???? | | ????## ####?????# #?# #???## ##??? | | ?????# #####?# ## #?## ##???# #??? | | ?????# ### #?? #?####???# #??? | | ?????# """" # #??? ?????????# #?? | | ?????## """" #????? ???????# #?? | | ??????## """" ###???? ?????# ##?? | | ???????## ##???? ????## #??? | | ????????## #?????? ??????# #??? | | ?????????# ### #??????? ?????? ##??? | | ?????????# #?## #######????????? ###???? | | ?????????## ##??### ## ##??????? #??????? | | ??????????####??#### # #??????? ???????? | | ????????????????# u d%d #### #???## ???????? | | ????????????????# #### @ #????# ???????? | | ??????????????? ???# ####????? ???????? | | ??????????????##????## ##???????? ???????? | | ?????????????????????# # #??????????##???????? | | ?????????????????????##=# # ##???????????????????? | | ??????????????????????# #####????????????????????? | | ??????????????????????# #????????????????????????? | | ??????????????????????# #????????????????????????? | | ??????????????????????# ????????????????????????? | | ???????????????????????##????????????????????????? | | ?????????????????????????????????????????????????? | | ?????????????????????????????????????????????????? | | ?????????????????????????????????????????????????? | | ?????????????????????????????????????????????????? | | ?????????????????????????????????????????????????? | | ?????????????????????????????????????????????????? | | ?????????????????????????????????????????????????? | | ?????????????????????????????????????????????????? | | ?????????????????????????????????????????????????? | | ?????????????????????????????????????????????????? | | ?????????????????????????????????????????????????? | | ?????????????????????????????????????????????????? | | ?????????????????????????????????????????????????? | | ?????????????????????????????????????????????????? | | ?????????????????????????????????????????????????? | +----------------------------------------------------+ Best States ------------- Heat Dissipation 35 Energy Generation 10 Energy Capacity 125 Matter Stores 300 Matter Capacity 300 Sight Range 16 Terrain Scan Density 10 Armor Coverage 225 Evasion (%) 50 Recoil Reduction 2 Item Schematics ----------------- None Robot Schematics ------------------ None Fabricated ------------ Nothing Alien Tech Used ----------------- None Achievements -------------- None Challenges ------------ None Game ------ Seed CryofiberEnergyMeganuke Manual? 0 Play Time 00:11:16 Cumulative 115.2 hours Start 2023.03.04 @ 13:33:22 End 2023.03.04 @ 13:43:47 Sessions 1 Manual Loads 0 Difficulty Rogue Special Mode None Game No. 77 Rogue 77 Adventurer 0 Explorer 0 Win Type - Total 1 Types 0/0/1/0/0/0/0/0/0 Lore% 52 Gallery% 65 Achievement% 52 Wizard Run 0 Options --------- ASCII 1 Keyboard 1 Movement Numpad Keybinds 0 Fullscreen 0 Font 16/Terminus Map View 76x50 Tactical HUD 1 Map Filters NONE Filters NONE Steam 1 RUN: 8880de06-649b-4217-b698-6001a47743f6